bitfinex/quotes_ETHUSD_20250904
["timestamp","ask_amount","ask_price","bid_price","bid_amount"]
[1757003044310,8.3957409,4311.2,4311.1,1e-08]
[1757003045519,9.1877409,4311.2,4311.1,1e-08]
[1757003047231,13.1147409,4311.2,4311.1,1e-08]
[1757003048923,2.31975503,4310.8,4310.7,0.004]
[1757003049147,6.36275503,4310.8,4310.7,0.004]
[1757003049445,7.57135503,4310.8,4310.7,0.004]
[1757003049972,2.31986266,4310.6,4310.3,0.004]
[1757003050169,21.00186542,4310.4,4310.3,0.004]
[1757003050337,23.11016652,4310.4,4310.3,0.004]
[1757003050531,24.02696652,4310.4,4310.3,0.004]
[1757003050735,24.35982237,4310.4,4310.3,1e-08]
[1757003050934,24.35982237,4310.4,4309.8,0.029]
[1757003050935,6.11202412,4310.3,4309.8,1e-08]
[1757003051146,2.3204548,4309.5,4309.4,0.004]
[1757003051352,26.10123369,4309.5,4309.4,0.004]
[1757003051562,27.01803369,4309.5,4309.4,0.004]
[1757003051843,2.32077792,4308.9,4308.6,0.004]
[1757003052066,26.75567304,4308.9,4308.6,0.004]
[1757003052372,5.32083178,4308.8,4308.6,0.004]
[1757003052572,17.20967092,4308.7,4308.6,1e-08]
[1757003052743,18.58935698,4308.7,4308.6,1e-08]
[1757003053339,2.321155,4308.2,4308.1,1e-08]
[1757003053575,22.04605012,4308.2,4308.1,1e-08]
[1757003053768,23.57283389,4308.2,4308.1,1e-08]
[1757003053968,24.01873389,4308.2,4308.1,1e-08]
[1757003055171,3.0,4307.9,4307.3,0.004]
[1757003055370,18.00348122,4307.4,4307.3,0.004]
[1757003055573,25.22328122,4307.4,4307.3,0.004]
[1757003055775,22.8292665,4307.4,4307.3,0.004]
[1757003055976,27.0490665,4307.4,4307.3,0.004]
[1757003056269,28.0818665,4307.4,4307.3,0.004]
[1757003056638,27.1650665,4307.4,4307.3,0.004]
[1757003056840,2.32164,4307.3,4306.8,0.025]
[1757003057073,0.116,4306.9,4306.8,0.025]
[1757003057286,12.00365562,4306.9,4306.8,0.025]
[1757003057813,15.47455562,4306.9,4306.8,0.025]
[1757003057939,15.47455562,4306.9,4306.1,1e-08]
[1757003057940,5.32223305,4306.2,4306.1,1e-08]
[1757003058145,12.90201833,4306.2,4306.1,1e-08]
[1757003058557,12.90201833,4306.2,4306.1,0.31490001]
[1757003059152,12.90201833,4306.2,4306.1,1e-08]
[1757003059551,12.90201833,4306.2,4306.1,0.31490001]
[1757003059948,12.90301833,4306.2,4306.1,0.31490001]
[1757003060174,12.90301833,4306.2,4306.1,1e-08]
[1757003062545,12.90301833,4306.2,4306.1,0.31490001]
[1757003062873,1.826,4306.2,4306.1,0.77770001]
[1757003063043,11.07723305,4306.2,4306.1,0.31490001]
[1757003063238,11.07723305,4306.2,4306.1,1e-08]
[1757003063458,11.36903305,4306.2,4306.1,1e-08]
[1757003063877,12.78274033,4306.2,4306.1,1e-08]
[1757003064309,12.78274033,4306.2,4305.9,0.004]
[1757003064310,2.32234091,4306.0,4305.9,0.004]
[1757003064511,21.00439784,4305.7,4305.6,5.0]
[1757003064724,28.48999784,4305.7,4303.8,0.4878]
[1757003065009,21.79672153,4305.1,4303.8,0.4878]
[1757003065207,28.85572153,4305.1,4303.8,0.4878]
[1757003065415,2.32288037,4305.0,4304.8,1e-08]
[1757003065576,10.04793433,4304.9,4304.8,1e-08]
[1757003065772,12.67024161,4304.9,4304.8,1e-08]
[1757003066386,2.32347405,4303.9,4303.8,0.025]
[1757003066682,10.97447405,4303.9,4303.8,0.025]
[1757003067209,11.26627405,4303.9,4303.8,0.025]
[1757003067709,11.5991299,4303.9,4303.8,0.025]
[1757003067899,2.32369001,4303.5,4303.4,0.003]
[1757003068106,2.32369001,4303.5,4303.3,0.003]
[1757003068107,6.11574401,4303.4,4303.3,0.003]
[1757003068279,18.00601718,4302.7,4301.8,0.025]
[1757003068480,32.66519627,4302.7,4301.8,0.025]
[1757003068779,33.42789627,4302.7,4301.8,0.025]
[1757003068992,32.95699627,4302.7,4301.8,0.025]
[1757003069195,32.30281718,4302.7,4301.8,0.025]
[1757003069375,33.47897895,4302.7,4301.8,0.025]
[1757003069580,29.53397895,4302.7,4301.8,0.025]
[1757003069807,33.47797895,4302.7,4301.8,0.025]
[1757003070008,34.70270969,4302.7,4301.8,0.025]
[1757003070224,35.84095804,4302.7,4301.8,0.025]
[1757003070532,15.42291457,4302.7,4301.8,0.025]
[1757003070743,2.445,4302.5,4300.0,5.6732385]
[1757003071035,2.445,4301.9,4300.0,5.6732385]
[1757003071173,3.0,4301.7,4300.1,1.45082385]
[1757003071374,1.712,4301.8,4300.2,0.75233125]
[1757003071574,1.712,4302.9,4301.7,0.3149]
[1757003071778,1.712,4302.9,4300.3,2.26772887]
[1757003072006,3.0,4302.7,4301.4,2.79298442]
[1757003072206,2.32445411,4302.1,4301.0,0.4682]
[1757003072409,0.65746174,4302.6,4301.0,0.4682]
[1757003072611,4.037,4302.5,4302.0,0.3149]
[1757003072940,3.0,4302.2,4300.1,0.56982385]
[1757003073079,2.32510652,4300.9,4300.2,0.4682]
[1757003073279,2.32532308,4300.5,4300.0,5.6732385]
[1757003073480,1.712,4300.4,4300.1,0.931]
[1757003073684,1.712,4300.4,4300.2,0.931]
[1757003073685,4.04,4300.3,4300.2,0.931]
[1757003073912,1.712,4301.3,4300.2,2.0379]
[1757003074114,1.712,4301.3,4301.2,2.32493257]
[1757003074320,1.712,4302.2,4301.9,2.32452869]
[1757003074614,5.352,4303.6,4302.0,0.931]
[1757003074615,3.582,4302.1,4302.0,0.931]
[1757003074813,1.712,4302.3,4302.2,2.32437603]
[1757003075111,1.712,4302.3,4302.2,0.7777]
[1757003075112,5.758,4302.3,4302.2,0.7777]
[1757003075337,5.874,4302.3,4302.2,0.7777]
[1757003075482,1.828,4302.3,4302.2,0.7777]
[1757003075679,5.76,4302.3,4302.2,1.2459]
[1757003075916,1.712,4302.3,4302.2,3.57029217]
[1757003076211,4.053,4302.6,4302.2,1.37049]
[1757003076425,1.712,4303.2,4302.3,0.931]
[1757003076592,1.712,4303.2,4302.4,0.137049]
[1757003076782,1.712,4303.2,4303.1,2.63880602]
[1757003076985,3.871,4303.5,4303.2,2.32382561]
[1757003077205,3.871,4303.5,4303.4,2.63864401]
[1757003077485,3.871,4303.5,4303.4,3.56964401]
[1757003077684,0.025,4303.8,4303.7,2.32358203]
[1757003077898,0.025,4303.8,4303.7,3.56948203]
[1757003078099,1.548,4303.8,4303.7,1.2459]
[1757003078414,1.548,4303.8,4303.2,0.4628]
[1757003078415,1.7028,4303.8,4303.2,0.4628]
[1757003078617,1.548,4303.8,4303.3,0.472]
[1757003078984,0.3111,4303.4,4301.8,0.025]
[1757003079210,3.0,4303.2,4301.8,0.025]
[1757003079382,3.0,4303.2,4301.8,0.497]
[1757003079585,2.32418196,4302.6,4301.8,0.497]
[1757003079786,1.712,4302.5,4301.9,0.4525]
[1757003080003,4.081,4302.4,4302.0,0.472]
[1757003080216,4.081,4302.4,4302.1,3.24894052]
[1757003080422,4.081,4302.4,4302.3,0.3116]
[1757003080713,1.712,4302.5,4302.3,0.3116]
[1757003080942,3.886,4302.4,4302.3,0.7836]
[1757003081588,3.886,4302.4,4302.3,0.3116]
[1757003082001,3.886,4302.4,4302.3,0.7836]
[1757003082728,3.886,4302.4,4302.3,0.3116]
[1757003083023,4.7569,4302.4,4301.8,0.025]
[1757003083222,6.77009543,4302.4,4301.8,0.025]
[1757003083428,1.712,4302.5,4301.8,0.025]
[1757003083429,4.078,4302.3,4301.8,0.025]
[1757003084099,1.712,4302.5,4302.2,0.3116]
[1757003084316,1.713,4303.2,4302.3,0.9245]
[1757003084489,1.713,4303.2,4303.1,0.3116]
[1757003084690,5.813,4303.2,4303.1,1.2361]
[1757003084925,5.813,4303.2,4302.5,0.4525]
[1757003085419,6.3943,4303.2,4301.8,0.4775]
[1757003085595,2.32390905,4303.1,4302.2,2.3243668]
[1757003085786,2.2943,4303.2,4302.0,0.472]
[1757003085995,0.116,4302.7,4302.0,0.116]
[1757003086197,0.116,4302.2,4301.8,0.025]
[1757003086396,5.813,4302.1,4301.8,0.025]
[1757003086606,2.63565426,4301.9,4301.8,0.025]
[1757003086822,2.75165426,4301.9,4301.8,0.025]
[1757003087000,3.20515426,4301.9,4301.8,0.025]
[1757003087206,3.66035426,4301.9,4301.8,0.025]
[1757003087522,6.66035426,4301.9,4301.8,0.025]
[1757003087833,8.05102331,4301.9,4301.8,0.025]
[1757003088193,7.59582331,4301.9,4301.8,0.025]
[1757003088397,5.818,4301.9,4301.8,0.025]
[1757003088815,1.713,4301.9,4301.8,3.1332083]
[1757003088995,5.833,4301.9,4301.8,3.1332083]
[1757003089197,1.713,4301.9,4301.8,3.1332083]
[1757003089405,5.833,4301.9,4301.8,3.1332083]
[1757003089622,1.713,4301.9,4301.8,3.1332083]
[1757003089930,5.832,4301.9,4301.8,3.5857083]
[1757003090435,0.4552,4303.6,4301.8,3.5857083]
[1757003090436,1.713,4303.0,4301.9,0.792]
[1757003090625,1.713,4303.7,4302.9,0.3116]
[1757003090830,1.826,4303.6,4303.2,2.32381109]
[1757003091023,0.116,4303.4,4302.9,2.44001162]
[1757003091334,4.129,4303.3,4302.4,2.32427156]
[1757003091516,0.4245,4303.2,4302.4,2.32424406]
[1757003091827,0.116,4303.4,4302.4,2.32424406]
[1757003091828,0.116,4303.4,4303.1,0.3116]
[1757003092032,4.133,4303.3,4303.1,0.3116]
[1757003092231,4.133,4303.2,4303.1,3.10750602]
[1757003092430,1.829,4303.7,4303.2,2.32383929]
[1757003092723,4.132,4303.6,4303.1,2.63548821]
[1757003093128,4.131,4303.5,4303.2,2.32380618]
[1757003093318,4.131,4303.4,4303.3,2.32378993]
[1757003093627,1.829,4303.7,4303.4,2.3237428]
[1757003093830,4.13,4303.6,4303.4,2.3237428]
[1757003094030,4.13,4303.6,4303.3,2.32379084]
[1757003094399,5.353,4304.3,4303.5,0.3116]
[1757003094601,0.4785,4304.8,4303.5,0.3116]
[1757003094603,0.025,4304.8,4303.7,2.43958203]
[1757003094805,0.034,4304.2,4303.7,3.23158203]
[1757003095108,0.034,4304.2,4303.7,4.46768203]
[1757003096032,0.034,4304.2,4303.7,3.67568203]
[1757003097013,0.001,4304.1,4303.7,2.43958203]
[1757003097212,0.001,4304.1,4303.7,2.75118203]
[1757003097423,0.001,4304.1,4303.7,3.22318203]
[1757003097624,4.158,4303.8,4303.7,3.22318203]
[1757003097840,0.025,4303.8,4303.7,5.02236893]
[1757003098245,0.025,4303.8,4303.7,4.46768203]
[1757003099843,0.025,4303.8,4303.7,8.67768203]
[1757003100916,0.025,4303.8,4303.7,6.96118203]
[1757003101151,0.025,4303.8,4303.7,4.326]
[1757003101313,0.025,4303.8,4303.7,4.21]
[1757003101507,0.025,4303.8,4303.7,6.53358203]
[1757003101713,4.155,4303.8,4303.7,6.84518203]
[1757003101912,4.155,4303.8,4303.7,4.21]
[1757003102660,4.4661,4303.8,4303.7,4.21]
[1757003103849,4.155,4303.8,4303.7,4.21]
[1757003104342,4.4661,4303.8,4303.7,4.21]
[1757003104548,4.4661,4303.8,4303.3,2.32374793]
[1757003104549,4.9213,4303.8,4303.3,0.116]
[1757003104723,4.9213,4303.8,4302.9,2.32401403]
[1757003104724,6.22504797,4303.8,4302.9,2.32401403]
[1757003104922,6.22504797,4303.8,4303.2,2.32381383]
[1757003105456,6.22504797,4303.8,4303.2,4.21]
[1757003105635,2.43970281,4303.5,4303.2,4.21]
[1757003105982,0.3111,4303.3,4303.2,4.21]
[1757003106843,0.7663,4303.3,4303.2,4.21]
[1757003107661,4.8883,4303.3,4303.2,4.21]
[1757003108173,4.8883,4303.3,4302.1,0.116]
[1757003108174,5.3418,4303.3,4302.1,0.116]
[1757003108373,0.116,4302.8,4302.1,0.116]
[1757003108543,0.3155,4302.2,4301.8,0.025]
[1757003108749,4.118,4302.1,4301.8,0.141]
[1757003109178,4.118,4302.0,4301.9,2.32455426]
[1757003109361,4.117,4302.0,4301.8,0.141]
[1757003109774,3.53585426,4301.9,4301.8,0.141]
[1757003110176,3.65185426,4301.9,4301.8,0.025]
[1757003111847,6.65185426,4301.9,4301.8,0.025]
[1757003112062,10.76785426,4301.9,4301.8,0.025]
[1757003112259,10.31525426,4301.9,4301.8,0.025]
[1757003112458,11.78148506,4301.9,4301.8,0.025]
[1757003113252,7.66648506,4301.9,4301.8,0.025]
[1757003113475,11.78048506,4301.9,4301.8,0.025]
[1757003114187,11.78048506,4301.9,4301.8,1e-08]
[1757003114890,12.57248506,4301.9,4301.8,1e-08]
[1757003115047,13.04981642,4301.9,4301.8,1e-08]
[1757003115482,0.792,4301.7,4300.8,1e-08]
[1757003115678,5.32498663,4301.1,4300.8,1e-08]
[1757003115894,5.64059474,4300.9,4300.8,1e-08]
[1757003116180,6.1205461,4300.9,4300.8,1e-08]
[1757003116350,7.0163461,4300.9,4300.8,1e-08]
[1757003116551,6.65239474,4300.9,4300.8,1e-08]
[1757003116752,11.01236502,4300.9,4300.8,1e-08]
[1757003117350,11.26031638,4300.9,4300.8,1e-08]
[1757003117753,11.25931638,4300.9,4300.8,1e-08]
[1757003118084,10.89536502,4300.9,4300.8,1e-08]
[1757003118283,12.05031638,4300.9,4300.8,1e-08]
[1757003118849,7.93631638,4300.9,4300.8,1e-08]
[1757003119071,10.89536502,4300.9,4300.8,1e-08]
[1757003119293,10.89536502,4300.9,4299.2,2.3300052]
[1757003119294,27.408843,4300.8,4294.8,1.73170744]
[1757003119586,27.408843,4300.8,4296.3,0.4444]
[1757003119587,6.8786,4300.7,4296.3,0.4444]
[1757003119788,1.63188082,4300.6,4296.4,1.7362753]
[1757003119996,18.81810015,4300.7,4296.7,3.0]
[1757003119997,2.32609068,4299.1,4296.7,3.0]
[1757003120286,1.713,4299.3,4297.0,0.792]
[1757003120511,4.349,4299.2,4297.2,0.792]
[1757003120686,2.32612235,4299.0,4297.3,0.4444]
[1757003120889,2.32645427,4298.4,4296.9,0.4444]
[1757003121082,6.29464543,4298.3,4296.9,0.4444]
[1757003121283,2.9,4298.2,4297.4,2.32694097]
[1757003121503,2.9,4298.2,4297.5,2.32688698]
[1757003121688,2.9,4298.2,4296.9,0.4444]
[1757003122012,6.062,4298.3,4297.0,1.1295]
[1757003122217,6.062,4298.3,4297.1,0.4444]
[1757003122516,6.062,4298.3,4298.2,2.6257553]
[1757003122719,4.349,4298.3,4298.2,3.0701553]
[1757003123205,1.713,4299.2,4297.5,0.3375]
[1757003123206,4.35,4298.6,4297.5,0.4444]
[1757003123417,4.35,4298.5,4297.5,0.4444]
[1757003123920,4.35,4298.5,4297.6,0.27713611]
[1757003124282,4.35,4298.5,4297.7,2.32682597]
[1757003124505,4.35,4298.5,4298.4,2.62564705]
[1757003124705,0.12959338,4299.3,4298.9,2.32617542]
[1757003124878,0.12959338,4299.3,4299.0,2.32606905]
[1757003125224,0.12959338,4299.3,4299.2,3.41721414]
[1757003125600,0.12959338,4299.3,4299.2,3.06961414]
[1757003126296,0.12959338,4299.3,4299.2,2.62521414]
[1757003126496,0.12959338,4299.3,4298.8,0.4444]
[1757003126740,0.12959338,4299.3,4298.8,2.32618297]
[1757003126927,0.12959338,4299.3,4298.9,2.32617386]
[1757003127224,0.116,4299.0,4298.8,2.32617863]
[1757003127395,0.116,4299.0,4298.4,0.116]
[1757003127596,0.116,4299.0,4298.5,2.32634336]
[1757003127798,0.116,4299.0,4298.7,2.32628129]
[1757003128024,0.116,4299.0,4298.4,0.116]
[1757003128203,0.116,4299.0,4298.9,2.62537646]
[1757003128432,0.12959338,4299.3,4298.9,0.2992]
[1757003128953,0.12959338,4299.3,4299.2,2.32601414]
[1757003129143,0.12959338,4299.3,4299.2,3.06961414]
[1757003129441,0.12959338,4299.3,4299.2,2.74121414]
[1757003129822,0.12959338,4299.3,4299.2,0.4152]
[1757003130006,0.12959338,4299.3,4299.2,2.74121414]
[1757003130953,0.12959338,4299.3,4299.2,3.18561414]
[1757003131118,0.12959338,4299.3,4299.2,3.73678562]
[1757003131536,0.12959338,4299.3,4299.2,3.29238562]
[1757003131722,5.70589338,4299.3,4298.2,3.0]
[1757003132045,0.8958,4299.2,4297.2,0.4444]
[1757003132206,2.326406,4298.5,4297.2,0.4444]
[1757003132409,6.082,4298.4,4298.3,0.004]
[1757003132642,4.368,4298.4,4298.3,0.004]
[1757003132945,4.367,4298.4,4298.3,0.004]
[1757003133104,4.367,4298.4,4298.3,2.33050117]
[1757003134163,6.078,4298.6,4298.5,2.32639292]
[1757003134459,4.364,4298.6,4298.5,2.32639292]
[1757003135154,4.364,4298.6,4298.3,0.004]
[1757003135321,0.4526,4298.5,4298.3,0.004]
[1757003135533,0.3155,4298.4,4298.3,0.004]
[1757003135862,3.53774705,4298.4,4298.3,0.004]
[1757003136020,0.7681,4298.4,4298.3,0.004]
[1757003136223,0.4526,4298.4,4298.3,0.004]
[1757003136422,0.5253,4298.4,4298.3,0.004]
[1757003137019,4.364,4298.6,4298.3,2.33049119]
[1757003137219,0.3155,4298.4,4298.3,0.004]
[1757003137427,4.6815,4298.4,4298.3,0.004]
[1757003137649,6.13503,4298.4,4298.3,0.004]
[1757003138562,8.46147705,4298.4,4298.3,0.004]
[1757003139665,6.13503,4298.4,4298.3,0.004]
[1757003139864,8.46147705,4298.4,4298.3,0.004]
[1757003140071,6.13503,4298.4,4298.3,0.004]
[1757003140240,4.91473,4298.4,4298.3,0.004]
[1757003140620,4.357,4298.4,4298.3,0.004]
[1757003140847,4.356,4298.4,4298.3,0.004]
[1757003141120,0.12991976,4299.1,4298.3,0.2931]
[1757003141326,4.358,4299.0,4298.4,2.32639891]
[1757003141553,4.358,4299.0,4298.5,2.3263398]
[1757003141722,4.358,4299.0,4298.3,0.004]
[1757003141923,4.358,4299.0,4298.6,2.32633258]
[1757003142220,0.116,4298.9,4298.3,0.5623]
[1757003142425,0.116,4298.9,4298.8,2.32623057]
[1757003142623,4.47,4298.9,4298.8,2.32623057]
[1757003142863,0.116,4298.9,4298.8,2.61533057]
[1757003143026,4.354,4298.9,4298.8,0.2891]
[1757003143222,4.354,4298.9,4298.8,2.32618431]
[1757003143457,4.354,4298.9,4298.3,0.004]
[1757003143635,4.47,4298.9,4298.3,2.44649947]
[1757003143836,4.47,4298.9,4298.4,2.32644705]
[1757003144049,4.47,4298.9,4298.5,2.32639062]
[1757003144237,4.47,4298.9,4298.8,2.32623057]
[1757003144450,0.12991976,4299.1,4299.0,2.32612235]
[1757003144764,4.47591976,4299.1,4299.0,2.32612235]
[1757003145127,0.12991976,4299.1,4299.0,3.05752235]
[1757003145559,0.12991976,4299.1,4299.0,3.59589685]
[1757003145759,0.12991976,4299.1,4299.0,3.93339685]
[1757003146024,0.12991976,4299.1,4299.0,4.04939685]
[1757003146797,0.12991976,4299.1,4299.0,7.84139685]
[1757003147733,1e-08,4299.1,4299.0,7.84139685]
[1757003149026,1e-08,4299.1,4299.0,11.84089685]
[1757003149459,1e-08,4299.1,4299.0,7.06159685]
[1757003149830,1e-08,4299.1,4299.0,7.50389685]
[1757003152026,1e-08,4299.1,4299.0,5.44212235]
[1757003152335,1e-08,4299.1,4299.0,0.116]
[1757003152530,1e-08,4299.1,4299.0,2.32612235]
[1757003154371,0.31360001,4299.1,4299.0,2.32612235]
[1757003154533,1.21820001,4299.1,4298.4,2.32644705]
[1757003154732,1.21820001,4299.1,4298.0,2.32664825]
[1757003154733,1.21820001,4299.1,4298.5,2.32639292]
[1757003154933,1.21820001,4299.1,4298.7,2.32624972]
[1757003155159,1.21820001,4299.1,4298.8,2.32622393]
[1757003155160,0.4728,4299.0,4298.8,2.32622393]
[1757003155460,0.4728,4299.0,4298.6,2.32628897]
[1757003155665,0.9046,4298.9,4298.1,2.33056863]
[1757003155961,0.9046,4298.9,4298.7,2.32626757]
[1757003156158,0.3136,4298.8,4298.1,2.33060457]
[1757003156336,0.4728,4298.9,4298.7,2.32628469]
[1757003157340,0.4728,4298.9,4298.1,2.33059432]
[1757003157341,3.54445804,4298.8,4298.1,2.33059432]
[1757003157549,4.314,4298.7,4298.1,2.33059432]
[1757003157733,4.7458,4298.7,4298.1,2.33059432]
[1757003157930,0.3136,4298.4,4298.1,0.004]
[1757003158170,0.82374,4298.4,4298.1,0.004]
[1757003158363,1.72834,4298.4,4298.1,0.004]
[1757003158866,4.05478705,4298.4,4298.1,0.004]
[1757003159064,1.72834,4298.4,4298.1,0.004]
[1757003159541,4.05478705,4298.4,4298.1,0.004]
[1757003160641,9.41178705,4298.4,4298.1,0.004]
[1757003161176,12.41178705,4298.4,4298.3,1e-08]
[1757003161355,28.26399812,4298.4,4298.3,1e-08]
[1757003161958,27.47199812,4298.4,4298.3,1e-08]
[1757003162160,16.71578705,4298.4,4298.3,1e-08]
[1757003162381,12.41178705,4298.4,4298.3,1e-08]
[1757003162554,16.71478705,4298.4,4298.3,1e-08]
[1757003162974,2.3265553,4298.2,4298.1,1e-08]
[1757003163176,7.94241235,4298.2,4298.1,1e-08]
[1757003163351,9.16061235,4298.2,4298.1,1e-08]
[1757003163884,3.11866356,4298.0,4297.9,1e-08]
[1757003164201,6.11877183,4297.8,4297.7,1e-08]
[1757003164481,10.42577183,4297.8,4297.7,1e-08]
[1757003164688,7.33697183,4297.8,4297.7,1e-08]
[1757003164980,11.64297183,4297.8,4297.7,1e-08]
[1757003165186,3.0,4297.7,4296.1,1.36753173]
[1757003165389,0.3136,4296.2,4296.1,1.36753173]
[1757003165681,6.8144,4296.2,4296.1,1.36753173]
[1757003165872,6.03,4296.2,4296.1,1.36753173]
[1757003166279,6.8164,4296.2,4296.1,1.36753173]
[1757003166985,6.03,4296.2,4296.1,1.36753173]
[1757003167374,6.3406,4296.2,4296.1,1.36753173]
[1757003167575,9.14103837,4296.2,4296.1,1.36753173]
[1757003167887,1.714,4296.2,4296.1,1.36753173]
[1757003168087,6.032,4296.2,4296.1,1.36753173]
[1757003168682,1.714,4296.2,4296.1,1.36753173]
[1757003168887,6.029,4296.2,4296.1,1.36753173]
[1757003169283,6.029,4296.2,4296.1,1.37153173]
[1757003169490,1.714,4296.2,4296.1,1.66603173]
[1757003169787,6.026,4296.2,4296.1,1.37153173]
[1757003170357,9.026,4296.2,4296.1,1.37153173]
[1757003170562,11.35363837,4296.2,4296.1,1.37153173]
[1757003170770,9.026,4296.2,4296.1,1.37153173]
[1757003170974,6.026,4296.2,4296.1,1.37153173]
[1757003171972,1.714,4296.2,4296.1,1.37153173]
[1757003172302,6.019,4296.2,4296.1,1.37153173]
[1757003172600,1.714,4296.2,4296.1,1.37153173]
[1757003172806,6.018,4296.2,4296.1,1.37153173]
[1757003173015,7.38845417,4296.2,4296.1,1.37153173]
[1757003173310,1.714,4296.2,4296.1,1.37153173]
[1757003173605,6.016,4296.2,4296.1,1.37153173]
[1757003173775,6.014,4296.2,4296.1,1.37153173]
[1757003173960,1.714,4296.2,4296.1,3.99372428]
[1757003174161,6.013,4296.2,4296.1,1.66603173]
[1757003174391,6.013,4296.2,4296.1,4.43362428]
[1757003174807,0.025,4296.8,4296.7,2.32736751]
[1757003174957,4.322,4296.8,4296.2,0.4399]
[1757003175162,4.322,4296.8,4296.7,2.62186751]
[1757003175666,0.025,4296.8,4296.7,2.62186751]
[1757003175998,4.321,4296.8,4296.7,3.06176751]
[1757003176170,0.025,4296.8,4296.7,3.06176751]
[1757003176380,0.025,4296.8,4296.7,3.93819183]
[1757003176596,0.025,4296.8,4296.7,4.84619183]
[1757003178709,0.022,4297.8,4297.7,3.11882597]
[1757003178912,0.16,4298.8,4297.7,3.11882597]
[1757003178913,0.044,4298.8,4298.7,2.32628469]
[1757003179232,0.044,4298.8,4298.7,3.96868469]
[1757003179530,0.044,4298.8,4298.7,3.80618926]
[1757003180306,0.044,4298.8,4298.7,0.116]
[1757003180515,0.044,4298.8,4298.0,0.4399]
[1757003180714,4.298,4298.7,4298.2,0.116]
[1757003180910,0.4959,4298.6,4298.2,0.116]
[1757003181233,2.32655919,4298.2,4297.5,0.116]
[1757003181534,0.4092,4298.3,4297.5,0.116]
[1757003181535,4.57157592,4298.1,4297.5,0.116]
[1757003181735,4.57157592,4298.1,4297.5,2.44293374]
[1757003182030,4.04128707,4298.7,4298.0,0.2945]
[1757003182031,3.0,4298.6,4298.0,0.2945]
[1757003182219,0.116,4298.3,4298.0,0.2945]
[1757003182418,4.295,4298.2,4298.0,0.2945]
[1757003182732,0.116,4298.3,4298.0,0.2945]
[1757003182920,1.715,4298.7,4298.0,0.7344]
[1757003183229,0.116,4298.6,4298.1,2.32659683]
[1757003183430,4.292,4298.5,4298.1,0.4399]
[1757003183732,4.291,4298.4,4298.2,2.3265553]
[1757003183931,4.291,4298.4,4298.0,2.32666356]
[1757003184230,0.116,4298.6,4298.1,2.32659531]
[1757003184432,4.288,4298.5,4298.0,2.32665594]
[1757003184637,4.288,4298.5,4298.2,2.3265451]
[1757003184952,1.715,4298.7,4298.4,2.62090502]
[1757003185246,1.715,4298.7,4298.6,2.3263388]
[1757003185441,4.286,4298.6,4298.5,2.76628688]
[1757003185665,4.286,4298.6,4298.5,3.06078688]
[1757003186006,1.715,4298.7,4298.5,0.7344]
[1757003186255,1.715,4298.7,4298.6,2.3263388]
[1757003186534,5.999,4298.7,4298.6,0.2945]
[1757003187134,5.998,4298.7,4298.6,3.0607388]
[1757003187308,5.994,4298.7,4298.6,3.0607388]
[1757003187507,5.994,4298.7,4298.6,4.40305671]
[1757003187734,0.044,4298.8,4298.7,3.11828469]
[1757003187930,0.044,4298.8,4298.7,3.55818469]
[1757003188180,0.044,4298.8,4298.7,7.28418469]
[1757003188446,0.044,4298.8,4298.7,7.16818469]
[1757003188619,0.044,4298.8,4298.7,8.83301286]
[1757003188821,0.001,4299.3,4299.0,3.11812235]
[1757003189021,0.001,4299.3,4299.0,21.20159464]
[1757003189237,0.001,4299.3,4299.0,7.16802235]
[1757003191314,0.001,4299.3,4299.0,3.41262235]
[1757003191508,0.49690001,4299.1,4298.3,0.4399]
[1757003191839,0.00100001,4299.1,4298.4,0.792]
[1757003192140,0.00100001,4299.1,4299.0,2.32612235]
[1757003192907,0.00100001,4299.1,4298.8,2.3262254]
[1757003193137,0.00100001,4299.1,4298.9,2.32615288]
[1757003193339,0.00100001,4299.1,4299.0,2.32612235]
[1757003193751,0.00100001,4299.1,4299.0,2.62062235]
[1757003193927,0.00100001,4299.1,4299.0,3.85252235]
[1757003194708,0.00100001,4299.1,4299.0,4.16802235]
[1757003194929,0.00100001,4299.1,4299.0,4.19128357]
[1757003195333,0.00100001,4299.1,4299.0,7.19128357]
[1757003195641,0.00100001,4299.1,4299.0,7.16802235]
[1757003195855,0.00100001,4299.1,4299.0,9.43593032]
[1757003196156,0.001,4299.6,4299.5,6.11785184]
[1757003196566,0.001,4299.6,4299.5,6.85225184]
[1757003196723,0.001,4299.6,4299.5,6.11785184]
[1757003196924,0.001,4299.6,4299.5,2.32585184]
[1757003197757,0.2942,4299.6,4298.1,2.0295]
[1757003197928,0.2942,4299.6,4299.2,2.32599774]
[1757003197929,1.2517,4299.6,4299.2,2.32599774]
[1757003198129,0.9575,4299.5,4299.3,2.32591829]
[1757003198854,0.001,4299.6,4299.2,2.32601414]
[1757003199062,0.001,4299.6,4299.1,0.116]
[1757003199063,0.9134,4299.5,4299.1,0.116]
[1757003199361,0.4844,4299.4,4298.2,3.0]
[1757003199559,0.4844,4299.4,4299.0,2.32609707]
[1757003199856,0.9134,4299.3,4298.9,2.32614515]
[1757003200061,0.4844,4299.2,4298.8,0.116]
[1757003200261,4.251,4299.5,4299.1,2.32602317]
[1757003200558,0.3129,4299.2,4298.8,2.44222908]
[1757003200759,0.9134,4299.4,4298.8,2.44222908]
[1757003200760,0.545,4299.4,4299.1,2.32605398]
[1757003200945,0.116,4299.4,4298.8,0.116]
[1757003201146,4.7354,4299.5,4299.1,2.32605775]